bitfinex-derivatives/quotes_ETHF0:USTF0_20251107
["timestamp","ask_amount","ask_price","bid_price","bid_amount"]
[1762518748049,4.417e-05,3206.3,3206.1,0.50583]
[1762518748259,3.2078,3208.5,3206.2,14.2376]
[1762518748444,0.79986228,3208.4,3207.7,3.2078]
[1762518748648,0.79986228,3208.4,3207.3,3.2078]
[1762518748950,0.50561,3207.8,3207.7,0.00468084]
[1762518749151,3.2078,3207.5,3206.0,4.7154]
[1762518749348,0.80094131,3207.8,3206.0,4.7154]
[1762518749349,3.2078,3207.0,3206.4,3.2078]
[1762518749555,3.2078,3207.6,3206.2,3.2078]
[1762518749749,0.50608,3206.2,3206.0,0.00247511]
[1762518749957,0.50604,3206.5,3206.0,0.50857511]
[1762518750256,3.71389,3206.1,3206.0,0.00247511]
[1762518750553,3.2078,3206.1,3206.0,0.00247511]
[1762518751354,0.5061,3205.9,3204.9,4.7154]
[1762518751653,3.2078,3206.0,3205.8,0.50605]
[1762518751858,0.00468084,3206.4,3206.2,0.50613]
[1762518752152,3.2078,3206.3,3205.9,0.50603]
[1762518752351,3.2078,3206.3,3205.9,0.00327748]
[1762518752953,0.50601,3206.1,3205.9,0.00327748]
[1762518753158,3.2078,3206.3,3205.9,0.00327748]
[1762518753658,3.2078,3206.3,3206.0,0.50603]
[1762518753849,0.506,3206.2,3205.9,0.00327748]
[1762518754055,3.2078,3206.3,3205.9,0.00327748]
[1762518754360,0.50604,3205.9,3205.8,0.00468084]
[1762518754553,3.2078,3205.9,3204.5,3.2078]
[1762518754855,3.2078,3205.4,3204.5,3.2078]
[1762518755057,3.2078,3204.8,3203.3,3.2078]
[1762518755258,0.80114928,3204.7,3203.3,3.2078]
[1762518755553,0.00468084,3204.3,3203.8,3.71405]
[1762518755752,0.00468084,3204.3,3203.8,3.2078]
[1762518755950,0.00468084,3204.3,3203.7,0.00468084]
[1762518756151,0.00468084,3204.3,3203.8,3.2078]
[1762518756456,0.00468084,3204.3,3204.0,0.50622]
[1762518756648,0.00468084,3204.3,3204.2,3.2078]
[1762518757048,0.00352699,3204.7,3204.2,11.2078]
[1762518757253,0.00352699,3204.7,3204.6,3.2078]
[1762518757753,0.00352699,3204.7,3204.6,3.71401]
[1762518758365,3.2078,3205.9,3204.6,3.2078]
[1762518758655,3.2078,3206.7,3205.8,3.2078]
[1762518758857,0.80208825,3206.6,3205.8,3.2078]
[1762518759162,0.50593,3206.4,3205.8,3.2078]
[1762518759356,0.50599,3206.0,3205.8,3.21022816]
[1762518759560,0.50604,3206.0,3205.8,0.007109]
[1762518759861,0.50604,3206.0,3204.3,3.2078]
[1762518759862,8.0,3206.0,3204.3,3.2078]
[1762518760059,0.00754091,3206.4,3204.3,3.2078]
[1762518760060,0.50593,3204.7,3204.3,3.2078]
[1762518760258,0.80185429,3205.6,3204.3,3.2078]
[1762518760552,0.50599,3204.3,3204.0,1.5076]
[1762518760757,0.50599,3204.3,3204.2,3.2078]
[1762518760950,0.50599,3204.3,3204.2,0.51692]
[1762518760951,0.50594,3204.3,3204.2,0.51692]
[1762518761147,0.00468084,3204.5,3204.2,0.51692]
[1762518761348,3.2078,3205.7,3204.2,6.75852]
[1762518761554,0.50584,3204.5,3204.4,3.2078]
[1762518761856,0.50595,3204.2,3204.0,1.51068142]
[1762518762056,0.50593,3204.3,3204.2,3.2078]
[1762518762260,0.50589,3204.6,3204.2,3.2078]
[1762518762452,3.2078,3205.2,3204.2,3.2078]
[1762518762655,3.2078,3205.6,3204.6,3.2078]
[1762518762859,0.50587,3204.7,3204.6,3.2078]
[1762518763054,3.2078,3205.6,3204.9,1.4601]
[1762518763362,0.50575,3205.3,3205.2,3.2078]
[1762518763656,1e-05,3205.3,3205.2,3.2078]
[1762518763860,0.50571,3205.7,3205.2,17.4478]
[1762518764062,0.00286007,3206.4,3205.6,3.2078]
[1762518764358,0.3114,3209.3,3204.9,1.46478084]
[1762518764359,0.50553,3206.9,3206.7,1.4601]
[1762518764560,0.50553,3206.9,3206.8,3.2078]
[1762518764764,0.50555,3206.6,3206.5,0.00468084]
[1762518765057,3.2078,3206.9,3205.8,1.4601]
[1762518765259,0.00401025,3206.9,3206.5,3.2078]
[1762518765460,0.50556,3206.7,3206.5,3.2078]
[1762518766264,0.5056,3206.4,3206.3,0.00468084]
[1762518766453,0.50566,3206.0,3205.8,1.46270028]
[1762518766657,3.2078,3206.2,3205.2,10.537]
[1762518766856,3.2078,3206.2,3205.1,3.2078]
[1762518767357,0.50577,3205.3,3205.1,3.2078]
[1762518767651,0.50577,3205.3,3205.1,3.21133576]
[1762518768264,0.50566,3205.8,3205.2,6.24]
[1762518768451,0.00869109,3206.9,3205.1,3.71710576]
[1762518768452,3.2078,3205.6,3205.1,0.00353576]
[1762518768761,3.2078,3206.2,3205.1,3.21133576]
[1762518769261,0.50573,3205.2,3205.1,5.76e-06]
[1762518769560,3.2078,3205.2,3204.0,4.7154]
[1762518769755,3.2078,3204.7,3204.0,4.7154]
[1762518769960,0.50596,3204.1,3204.0,1.5076]
[1762518770460,3.2078,3205.0,3203.5,3.2078]
[1762518770653,3.2078,3204.6,3203.5,3.2078]
[1762518770854,0.51059084,3204.4,3204.3,3.2078]
[1762518771059,0.50594,3204.3,3204.0,1.4601]
[1762518771255,0.50595,3204.2,3204.0,1.4601]
[1762518771455,0.50599,3203.9,3203.8,3.2078]
[1762518771859,0.50599,3203.9,3203.7,0.00468084]
[1762518772462,0.50599,3203.9,3203.7,8.4e-07]
[1762518772951,3.2078,3204.1,3202.0,4.8286]
[1762518773155,0.00468084,3204.4,3202.0,15.3516]
[1762518773156,0.50627,3202.2,3202.0,15.3516]
[1762518773360,0.50627,3202.2,3202.0,4.8286]
[1762518773655,3.2078,3203.1,3202.0,1.6208]
[1762518773860,3.2078,3203.1,3202.3,3.2078]
[1762518774362,0.50624,3202.6,3202.4,0.00468084]
[1762518774759,0.50627,3202.4,3202.3,0.00300871]
[1762518775166,3.2078,3202.5,3202.3,0.00300871]
[1762518775465,0.00468084,3203.0,3202.3,0.00300871]
[1762518775466,0.00468084,3203.0,3202.4,17.4534]
[1762518775761,0.00468084,3203.0,3202.4,9.45808084]
[1762518775958,0.00468084,3203.0,3202.9,3.2078]
[1762518776362,0.00468084,3203.0,3202.9,9.4518]
[1762518776562,0.00468084,3203.0,3202.9,3.2078]
[1762518776763,0.50618,3202.9,3202.4,3.21248084]
[1762518777060,0.51085084,3203.0,3202.4,3.21248084]
[1762518777261,0.50621,3202.7,3202.4,3.21248084]
[1762518777560,0.50624,3202.6,3202.4,0.00468084]
[1762518777762,0.00468084,3203.0,3202.4,0.00468084]
[1762518777964,0.50623,3202.6,3202.4,3.21248084]
[1762518778271,0.00468084,3203.0,3202.4,3.21248084]
[1762518778456,0.50623,3202.6,3202.4,3.21248084]
[1762518778765,3.71403,3202.6,3202.4,0.00468084]
[1762518779759,3.71406,3202.6,3202.4,0.00468084]
[1762518780162,0.50626,3202.6,3202.4,0.00468084]
[1762518780359,0.50627,3202.1,3202.0,9.55e-06]
[1762518780666,3.71407,3202.1,3202.0,9.55e-06]
[1762518781461,11.2078,3202.1,3200.1,3.2078]
[1762518781671,11.2078,3202.1,3200.0,1.4601]
[1762518781672,3.2078,3201.4,3200.5,3.2078]
[1762518781965,0.50652,3200.6,3200.2,9.6518]
[1762518782266,3.2078,3201.0,3200.2,9.6518]
[1762518782267,0.50655,3200.4,3200.2,3.2078]
[1762518782466,0.50965149,3200.4,3200.2,0.0037517]
[1762518782660,0.00310149,3200.4,3200.2,0.0037517]
[1762518782970,0.50965149,3200.4,3200.2,0.0037517]
[1762518783267,3.2078,3201.8,3200.3,18.38548302]
[1762518783468,0.50628,3202.1,3201.5,3.2078]
[1762518783761,10.116,3203.5,3201.3,1.4601]
[1762518783762,3.2078,3202.2,3201.3,1.4601]
[1762518783965,0.50634,3201.7,3201.3,1.4601]
[1762518784158,3.2078,3201.6,3201.3,1.4601]
[1762518784354,0.50636,3201.6,3201.3,1.4601]
[1762518784562,0.50637,3201.5,3201.3,1.4601]
[1762518785063,0.00331352,3201.7,3201.3,7.7073]
[1762518785263,0.00331352,3201.7,3201.3,1.4601]
[1762518785264,0.50637,3201.5,3201.3,1.4601]
[1762518785471,0.5064,3201.3,3201.2,0.00468084]
[1762518786165,0.00331352,3201.7,3201.2,0.00468084]
[1762518786566,0.5064,3201.3,3201.2,0.00468084]
[1762518786767,0.00331352,3201.7,3201.2,0.00468084]
[1762518786968,0.5064,3201.3,3201.2,0.00468084]
[1762518788269,3.2078,3201.4,3201.2,0.00468084]
[1762518788474,0.5064,3201.3,3201.2,0.00468084]
[1762518788673,3.2078,3201.4,3200.2,0.0037517]
[1762518788674,0.50656,3200.3,3200.2,0.0037517]
[1762518788879,3.2078,3200.9,3200.2,10.4527517]
[1762518789072,0.50653,3200.5,3200.2,10.4527517]
[1762518789267,3.2078,3200.9,3200.2,0.0037517]
[1762518789470,3.2078,3201.4,3201.3,1.4603]
[1762518789670,0.00331352,3201.7,3201.3,1.4603]
[1762518790571,0.50635,3201.5,3201.3,1.4603]
[1762518790771,0.00331352,3201.7,3201.3,10.9153]
[1762518790972,3.2078,3202.6,3201.4,10.37609832]
[1762518791178,3.2078,3203.0,3202.5,3.2078]
[1762518791470,3.2078,3203.4,3202.5,3.2078]
[1762518791676,3.2078,3204.0,3202.9,3.2078]
[1762518791981,3.2078,3204.4,3203.5,3.2078]
[1762518792168,3.2078,3204.4,3203.1,1.4603]
[1762518792169,3.2078,3204.8,3204.0,1.4603]
[1762518792366,0.00468084,3204.7,3204.0,1.4603]
[1762518792573,3.2078,3204.3,3203.6,10.441]
[1762518792764,3.2078,3204.3,3203.3,3.71386]
[1762518792765,3.71378,3203.9,3203.3,3.2078]
[1762518792970,3.71371,3204.3,3203.5,10.441]
[1762518793171,0.50596,3204.0,3203.7,3.2078]
[1762518793380,0.50598,3203.9,3203.7,3.2078]
[1762518793674,0.00468084,3204.7,3203.7,3.2078]
[1762518793675,0.00468084,3204.7,3203.8,7.20417744]
[1762518793876,0.50589,3204.5,3204.3,3.2078]
[1762518794074,0.50587,3204.6,3204.1,3.2078]
[1762518794272,0.00468084,3204.7,3204.5,3.2078]
[1762518794273,0.51053084,3204.7,3204.5,3.2078]
[1762518794771,0.50598,3203.9,3203.2,3.2078]
[1762518795078,0.50598,3203.9,3203.6,3.2078]
[1762518795278,0.50595,3204.1,3203.6,3.2078]
[1762518795477,3.2078,3206.4,3204.0,4.6681]
[1762518795675,3.2078,3206.0,3205.2,3.2078]
[1762518795881,0.50575,3205.3,3204.8,3.2078]
[1762518796075,3.2078,3205.5,3204.8,3.2078]
[1762518796076,0.50579,3205.1,3204.8,3.2078]
[1762518796273,1.5459,3205.8,3204.8,3.2078]
[1762518796578,0.50587,3204.8,3204.7,3.2078]
[1762518796881,0.5059,3204.6,3204.5,0.00260954]
[1762518797175,3.2078,3204.8,3204.0,3.2078]
[1762518797376,0.50603,3203.8,3203.6,3.2078]
[1762518797573,0.50609,3203.4,3203.3,10.482]
[1762518797779,0.50609,3203.4,3203.2,3.2078]
[1762518798276,0.00308357,3203.4,3203.2,0.00306652]
[1762518798482,0.50612,3203.3,3203.2,0.00306652]
[1762518798679,0.00308357,3203.4,3203.2,0.00306652]
[1762518798873,8.50919357,3203.4,3203.2,0.00306652]
[1762518799177,1.5459,3203.1,3201.7,3.2078]
[1762518799481,3.2078,3203.0,3202.3,3.2078]
[1762518799982,0.00468084,3203.0,3202.9,3.71399]
[1762518800177,0.00468084,3203.0,3202.9,3.2078]
[1762518800882,0.00468084,3203.0,3202.5,3.2078]
[1762518800883,0.50623,3202.7,3202.5,3.2078]
[1762518801081,0.00468084,3203.0,3202.5,3.2078]
[1762518801381,0.00468084,3203.0,3202.9,3.2078]
[1762518801576,0.00308357,3203.4,3202.9,3.2078]
[1762518801879,5.34118321,3208.3,3203.3,3.2078]
[1762518801880,0.50603,3203.7,3203.3,3.2078]
[1762518802175,0.50597,3204.1,3203.3,3.71388]
[1762518802377,3.2078,3205.0,3203.8,3.71378]
[1762518802590,0.5059,3204.4,3204.2,3.2078]
[1762518802776,0.50983826,3204.4,3204.2,3.2078]
[1762518803274,0.50985826,3204.4,3204.0,3.21248084]
[1762518803584,0.50597,3204.2,3204.0,3.21248084]
[1762518804376,0.00393826,3204.4,3204.2,0.50596]
[1762518804677,0.00468084,3204.7,3204.2,0.50595]
[1762518804882,0.00468084,3204.7,3204.2,3.2078]
[1762518805079,0.00468084,3204.7,3204.2,3.71376]
[1762518805478,0.00468084,3204.7,3204.2,3.2078]
[1762518805678,0.00710539,3204.7,3204.2,3.2078]
[1762518805876,0.50594,3204.4,3204.2,3.2078]
[1762518806079,0.50598,3204.2,3204.0,0.00468084]
[1762518806381,0.50598,3204.2,3204.1,3.2078]
[1762518806576,0.50598,3204.2,3204.0,0.00468084]
[1762518807383,0.00710539,3204.7,3204.5,0.50591]
[1762518807677,0.00710539,3204.7,3204.6,3.2078]
[1762518807878,0.00710539,3204.7,3204.6,3.21013411]
[1762518808486,0.00710539,3204.7,3204.6,0.00233411]
[1762518808685,8.51306539,3204.7,3204.6,0.00233411]
[1762518808984,8.51306539,3204.7,3203.3,40.8]
[1762518808985,0.50616,3203.5,3203.2,3.2078]
[1762518809280,0.50617,3203.4,3202.9,0.50624]
[1762518809481,0.50617,3203.4,3202.8,3.2078]
[1762518809780,3.2078,3202.9,3201.9,3.2078]
[1762518810090,3.2078,3202.9,3201.9,3.71646159]
[1762518810280,0.00468084,3202.7,3202.3,3.2078]
[1762518810783,0.50631,3202.5,3201.9,3.21006159]
[1762518811174,0.00468084,3202.7,3201.9,3.21006159]
[1762518811490,0.50635,3202.2,3201.9,3.21006159]
[1762518811789,0.00369319,3202.2,3201.9,3.21006159]
[1762518812484,0.00468084,3202.7,3202.3,0.50632]
[1762518812683,0.00468084,3202.7,3202.6,3.2078]
[1762518812881,3.21248084,3202.7,3202.0,3.2078]
[1762518813180,0.51097084,3202.7,3202.4,3.2078]
[1762518813386,0.00468084,3202.7,3202.4,3.2078]
[1762518813579,0.00769181,3202.7,3202.4,3.2078]
[1762518813779,0.50629,3202.6,3202.4,3.2078]
[1762518813979,0.00769181,3202.7,3202.4,3.2078]
[1762518814376,0.50629,3202.6,3202.0,3.2078]
[1762518814583,0.00769181,3202.7,3202.1,0.50636]
[1762518814783,0.51396181,3202.7,3202.1,0.50636]
[1762518814979,0.51398181,3202.7,3202.0,3.71418]
[1762518815186,0.51398181,3202.7,3202.2,0.50635]
[1762518815390,0.00769181,3202.7,3202.4,3.2078]
[1762518815787,0.51397181,3202.7,3202.4,3.2078]
[1762518816184,0.50629,3202.6,3202.0,3.2078]
[1762518816392,0.00769181,3202.7,3202.0,3.2078]
[1762518817087,3.2078,3202.5,3202.0,3.2078]
[1762518817288,0.00769181,3202.7,3202.2,0.50635]
[1762518817488,0.50632,3202.5,3202.0,3.2078]
[1762518817686,0.50629,3202.6,3202.0,3.2078]
[1762518817985,0.50635,3202.3,3202.0,3.2078]
[1762518818186,0.00769181,3202.7,3202.0,3.2078]
[1762518818393,3.2078,3202.3,3201.9,0.00226159]
[1762518818591,0.50636,3202.2,3201.9,0.00226159]
[1762518818789,0.50637,3202.1,3201.9,0.00226159]
[1762518818992,1.5358,3202.4,3201.9,0.00226159]
[1762518818993,0.50638,3202.0,3201.9,0.00226159]
[1762518819586,0.50648,3201.4,3201.2,3.2078]
[1762518819790,3.2078,3201.7,3201.2,3.2078]
[1762518819994,1.4755,3201.6,3201.2,3.2078]
[1762518820290,1.5358,3202.4,3202.0,0.50637]
[1762518820492,3.2078,3202.1,3201.3,3.71428]
[1762518820693,0.50642,3201.8,3201.3,3.71788101]
[1762518821095,3.2078,3202.1,3201.3,3.21140101]
[1762518821289,0.50642,3201.8,3201.3,3.71789101]
[1762518821792,0.50646,3201.5,3201.3,3.21140101]
[1762518821983,1.5358,3202.4,3201.3,3.21140101]
[1762518821984,0.50648,3201.4,3201.3,3.21140101]
[1762518822190,4.7436,3202.4,3201.5,0.50645]
[1762518822399,4.7436,3202.4,3201.3,3.21140101]
[1762518822400,1.5358,3202.4,3201.8,0.50642]
[1762518822595,1.5358,3202.4,3202.2,0.50635]
[1762518822796,0.00769181,3202.7,3202.2,0.50635]
[1762518822999,0.00769181,3202.7,3202.3,0.50633]
[1762518823200,0.51396181,3202.7,3202.3,0.50633]
[1762518823397,0.00769181,3202.7,3202.1,3.2078]
[1762518823800,0.50632,3202.4,3202.1,3.2078]
[1762518824396,3.2078,3202.5,3202.1,3.2078]
[1762518824598,0.50635,3202.2,3202.1,3.2078]
[1762518824801,3.2078,3202.5,3202.1,3.2078]
[1762518825105,3.2078,3202.5,3202.3,0.50633]
[1762518825306,0.00769181,3202.7,3202.6,0.50629]
[1762518825508,0.00769181,3202.7,3202.6,3.71409]
[1762518825807,0.51396181,3202.7,3202.1,0.50637]
[1762518826112,0.51396181,3202.7,3201.9,3.2078]
[1762518826310,0.50631,3202.5,3202.0,0.50637]
[1762518826511,0.50629,3202.6,3201.9,3.2078]
[1762518826717,1.98184,3202.4,3201.9,3.7142]
[1762518827017,0.00769181,3202.7,3202.3,0.50634]
[1762518827213,0.51397181,3202.7,3202.2,0.50635]
[1762518827414,0.00769181,3202.7,3201.9,3.2078]
[1762518827606,0.00769181,3202.7,3202.3,3.2078]
[1762518827917,0.00769181,3202.7,3201.8,3.2078]
[1762518828216,0.51398181,3202.7,3202.3,0.50634]
[1762518828416,0.00769181,3202.7,3202.2,3.2078]
[1762518828616,0.00769181,3202.7,3202.1,0.50637]
[1762518828617,3.21549181,3202.7,3202.1,0.50637]
[1762518828913,0.50631,3202.5,3202.1,0.50637]
[1762518829216,3.21549181,3202.7,3202.0,0.50638]
[1762518829513,3.21549181,3202.7,3201.8,3.2078]
[1762518829709,0.50632,3202.4,3201.9,0.50638]
[1762518829915,0.00769181,3202.7,3202.2,3.2078]
[1762518830113,0.00769181,3202.7,3202.5,0.5063]
[1762518830310,0.00769181,3202.7,3202.6,0.50629]
[1762518830511,0.00769181,3202.7,3202.6,3.71409]
[1762518831213,1.5459,3204.0,3202.6,11.2078]
[1762518831517,1.5459,3204.0,3202.8,3.2078]
[1762518831518,3.2078,3203.8,3202.8,3.2078]
[1762518831921,0.50619,3203.3,3202.8,3.2078]
[1762518832216,0.00273967,3203.3,3202.8,3.2078]
[1762518832412,0.50626,3202.8,3202.7,0.00468084]
[1762518832915,3.71401,3203.1,3202.7,0.00468084]
[1762518833212,0.50623,3203.0,3202.7,0.00468084]
[1762518833413,1.4755,3203.2,3202.7,0.00468084]
[1762518833615,0.50619,3203.2,3202.7,0.51095084]
[1762518833818,0.50892967,3203.3,3202.8,0.50625]
[1762518834014,0.5062,3203.2,3202.8,0.50625]
[1762518834412,0.00273967,3203.3,3203.1,0.5062]
[1762518834607,0.00273967,3203.3,3203.2,0.50619]
[1762518834922,3.2078,3204.7,3203.2,1.2636]
[1762518835118,3.2078,3204.7,3203.9,3.2078]
[1762518835314,3.2078,3205.0,3203.9,3.2078]
[1762518835616,3.2078,3204.3,3203.5,3.2078]
[1762518835913,0.00468084,3204.2,3204.1,0.50605]
[1762518836214,0.00468084,3204.2,3204.0,3.2078]
[1762518836518,0.00468084,3204.2,3204.0,3.71387]
[1762518837017,0.00468084,3204.2,3204.1,0.50605]
[1762518837524,0.00219635,3204.3,3204.2,0.50604]
[1762518838117,0.00219635,3204.3,3204.2,6.74764]
[1762518838320,0.00219635,3204.3,3204.2,0.50604]
[1762518838611,0.00468084,3204.6,3204.5,0.50599]
[1762518838817,0.00468084,3204.6,3204.5,3.71379]
[1762518839617,0.00706736,3204.6,3204.5,3.71379]
[1762518840016,3.2078,3206.1,3205.5,0.50583]
[1762518840208,1.4755,3206.4,3205.8,3.2078]
[1762518840519,1.4755,3205.6,3204.6,0.50597]
[1762518840715,3.2078,3205.4,3205.3,0.50586]
[1762518840920,0.50585,3205.4,3205.1,3.2078]
[1762518841113,0.00315511,3205.4,3205.1,3.71672755]
[1762518841519,0.50900511,3205.4,3205.1,3.21083755]
[1762518841720,0.00315511,3205.4,3205.1,3.71672755]
[1762518842025,0.00315511,3205.4,3205.3,0.50586]
[1762518843419,8.00315511,3205.4,3205.1,3.21083755]
[1762518843615,3.2078,3205.2,3205.1,0.00303755]
[1762518843817,0.50587,3205.3,3205.1,0.00303755]
[1762518844013,0.50588,3205.2,3205.1,0.00303755]
[1762518844319,1.4755,3204.8,3204.3,3.2078]
[1762518844622,0.00315511,3205.4,3204.9,0.50591]
[1762518844816,0.00315511,3205.4,3204.7,3.2078]
[1762518845022,0.00315511,3205.4,3205.3,0.50586]
[1762518845416,0.00315511,3205.4,3205.3,0.50826767]
[1762518845916,3.2078,3207.4,3205.4,8.0]
[1762518846121,3.2078,3207.4,3207.0,0.50559]
[1762518846418,1.98108,3207.2,3206.0,3.2078]
[1762518846618,3.2078,3206.8,3206.4,0.50568]
[1762518846815,1.4755,3207.2,3206.5,0.50567]
[1762518847019,1.48373419,3207.2,3207.0,0.50559]
[1762518847318,0.00823419,3207.2,3207.0,0.50559]
[1762518848024,1.48373419,3207.2,3206.8,3.71342]
[1762518848220,0.00823419,3207.2,3207.0,0.50559]
[1762518849321,4.71813419,3207.2,3206.5,0.00468084]
[1762518849527,3.71345,3206.7,3206.5,0.00468084]
[1762518849920,1.5021,3206.4,3205.8,3.2078]
[1762518850120,2.0078,3206.4,3205.9,0.50576]
[1762518850323,0.50572,3206.2,3205.8,3.2078]
[1762518850826,0.50572,3206.2,3205.8,3.71358]
[1762518851022,1.5021,3206.4,3205.8,3.2078]
[1762518851219,3.2078,3206.6,3205.8,3.2078]
[1762518851424,0.50571,3206.3,3205.8,3.2078]
[1762518851626,3.2078,3206.6,3206.4,0.50568]
[1762518851832,3.2078,3207.1,3206.5,0.50567]
[1762518852027,0.50585,3205.4,3204.2,3.2078]
[1762518852323,0.50601,3204.4,3203.7,0.50611]
[1762518852526,3.2078,3203.8,3203.0,3.2078]
[1762518852925,0.50607,3204.0,3203.0,3.2078]
[1762518853119,3.21248084,3203.8,3203.6,0.50612]
[1762518853324,0.50596,3204.7,3204.0,0.50606]
[1762518853521,3.2078,3204.8,3203.8,0.50609]
[1762518853728,0.50598,3204.6,3203.9,0.50607]
[1762518854028,3.2078,3204.8,3204.0,3.2078]
[1762518854331,3.2078,3204.3,3203.2,0.00468084]
[1762518854532,0.50608,3204.0,3203.4,0.50616]
[1762518854732,3.2078,3204.3,3203.5,3.2078]
[1762518854925,3.2078,3205.5,3204.2,3.2078]
[1762518855125,3.2078,3205.9,3204.9,3.2078]
[1762518855328,3.2078,3205.5,3204.5,3.2078]
[1762518855728,0.50597,3204.6,3204.5,3.2078]
[1762518856031,0.506,3204.5,3203.8,3.71389]
[1762518856333,0.50605,3204.2,3203.8,3.21248084]
[1762518856635,0.50603,3204.3,3203.8,3.21248084]
[1762518856833,0.00826436,3204.5,3204.2,3.2078]
[1762518857235,0.50601,3204.4,3204.2,3.2078]
[1762518858032,0.00826436,3204.5,3204.2,3.2078]
[1762518858238,0.51425436,3204.5,3204.2,3.2078]
[1762518858437,0.00826436,3204.5,3204.2,3.2078]
[1762518858728,0.51426436,3204.5,3204.2,3.2078]
[1762518858928,0.51425436,3204.5,3204.2,3.2078]
[1762518859638,0.50601,3204.4,3204.2,3.2078]
[1762518860042,0.51426436,3204.5,3204.2,3.2078]
[1762518860426,0.50601,3204.4,3204.2,3.2078]
[1762518861325,3.2078,3205.3,3204.8,0.50594]
[1762518861532,0.50593,3204.9,3204.6,3.71377]
[1762518861737,0.50595,3204.8,3204.6,3.2078]
[1762518861936,0.50604,3204.2,3204.1,3.2078]
[1762518862142,0.50602,3204.4,3204.1,3.2078]
[1762518862333,0.50602,3204.3,3204.1,3.2078]
[1762518862733,0.50833684,3204.3,3204.1,3.2078]
[1762518862932,1.5021,3205.6,3204.7,0.50594]
[1762518862933,0.50591,3205.0,3204.7,0.50594]
[1762518863142,3.13364911,3206.4,3204.0,1.4129]
[1762518863143,4.7099,3206.4,3205.0,0.5059]
[1762518863336,0.50587,3205.3,3205.0,0.50591]
[1762518863838,0.00372063,3205.3,3205.1,0.50589]
[1762518864330,0.00372063,3205.3,3204.9,3.2078]
[1762518864934,0.00372063,3205.3,3204.0,1.4129]
[1762518865140,3.2078,3205.1,3204.4,3.2078]
[1762518865437,0.506,3204.6,3204.4,3.2078]
[1762518865637,0.00372063,3205.3,3204.4,3.2078]
[1762518865844,0.50593,3204.9,3204.5,3.2078]
[1762518866036,0.50598,3204.6,3204.5,3.2078]
[1762518866438,0.00372063,3205.3,3204.5,3.2078]
[1762518866841,0.5059,3205.1,3204.9,3.2078]
[1762518867147,0.50959063,3205.3,3204.9,3.2078]
[1762518867345,0.50589,3205.2,3204.9,3.2078]
[1762518867643,0.00372063,3205.3,3204.9,3.2078]
[1762518867846,0.50959063,3205.3,3204.9,3.2078]
[1762518868045,0.50589,3205.2,3204.9,3.2078]
[1762518868241,0.50592,3205.0,3204.9,3.2078]
[1762518868550,0.50595,3204.8,3204.4,3.7138]
[1762518868749,0.50595,3204.8,3204.4,3.2078]
[1762518869046,0.00372063,3205.3,3205.0,0.50588]
[1762518869237,0.00372063,3205.3,3205.2,3.2078]
[1762518870648,0.50957063,3205.3,3205.2,3.2078]
[1762518870941,0.00372063,3205.3,3205.2,3.71366]
[1762518871143,1.5021,3206.4,3205.2,3.2078]
[1762518871443,3.2078,3206.2,3205.5,0.00468084]
[1762518871744,3.2078,3206.2,3205.5,3.21248084]
[1762518871945,0.5058,3205.6,3205.5,3.21248084]
[1762518872147,0.50855456,3205.6,3205.5,3.21500744]
[1762518872540,0.00275456,3205.6,3205.5,3.21500744]
[1762518872740,0.50857456,3205.6,3205.5,3.21500744]
[1762518873847,0.00275456,3205.6,3205.5,3.21500744]
[1762518874040,0.00275456,3205.6,3205.5,3.72084744]
[1762518874247,3.2078,3207.1,3205.6,1.4129]
[1762518874443,3.2078,3207.1,3206.4,3.2078]
[1762518874642,3.2078,3206.6,3205.8,3.2078]
[1762518875048,0.50575,3206.1,3205.8,3.2078]
[1762518875243,0.00328235,3206.1,3205.8,3.2078]
[1762518875845,0.50578,3206.0,3205.8,3.2078]
[1762518876247,0.00328235,3206.1,3205.8,3.2078]
[1762518876453,0.50903235,3206.1,3205.8,3.2078]
[1762518876750,0.50578,3205.9,3205.8,3.2078]
[1762518877345,0.00328235,3206.1,3205.5,0.00720744]
[1762518877547,0.50577,3206.0,3205.5,0.00720744]
[1762518877748,0.50579,3205.9,3205.5,0.00720744]
[1762518878453,0.00328235,3206.1,3205.5,0.00720744]
[1762518878752,0.50579,3205.9,3205.5,0.00720744]
[1762518879346,0.00328235,3206.1,3205.5,0.00720744]
[1762518879549,0.50583,3205.6,3205.5,0.00720744]
[1762518881358,1.4365,3206.0,3205.5,0.00720744]
[1762518881553,0.5058,3205.8,3205.5,0.00720744]
[1762518881757,3.2078,3207.0,3206.1,0.50573]
[1762518882051,3.2078,3207.0,3205.5,0.00720744]
[1762518882052,0.5057,3206.5,3206.3,3.2078]
[1762518882458,0.50569,3206.5,3206.3,3.2078]
[1762518882646,0.50575,3206.1,3205.6,0.50582]
[1762518882849,0.50575,3206.1,3205.8,3.2078]
[1762518883154,0.50571,3206.4,3205.8,3.2078]
[1762518883349,0.50571,3206.4,3205.9,0.50578]
[1762518883545,0.50572,3206.3,3205.9,0.50578]
[1762518883749,0.00292436,3206.5,3206.0,0.50576]
[1762518883750,0.5057,3206.4,3206.0,0.50576]
[1762518884156,0.50571,3206.3,3205.8,3.2078]
[1762518884351,0.5057,3206.4,3205.9,0.50577]
[1762518884552,0.00292436,3206.5,3206.2,3.2078]
[1762518884759,0.00292436,3206.5,3206.3,0.50571]
[1762518884959,0.00292436,3206.5,3206.2,3.2078]
[1762518885147,0.00292436,3206.5,3206.1,3.2078]
[1762518885352,0.50860436,3206.5,3206.1,3.2078]
[1762518885551,0.00292436,3206.5,3206.1,3.71354]
[1762518885747,0.00292436,3206.5,3206.1,3.2078]
[1762518885948,0.50576,3206.1,3205.7,3.2078]
[1762518886252,0.50582,3205.6,3205.5,0.00720744]
[1762518887054,0.50582,3205.7,3205.5,0.00720744]
[1762518887754,0.50582,3205.6,3205.5,0.00720744]
[1762518888159,4.6443,3206.0,3205.5,0.00720744]
[1762518888356,0.00292436,3206.5,3205.5,0.00720744]
[1762518888357,0.5058,3205.8,3205.5,0.00720744]